bitfinex/quotes_BTCUSD_20240823
["timestamp","ask_amount","ask_price","bid_price","bid_amount"]
[1724405828790,0.10065799,61386.0,61385.0,1.5878457]
[1724405830032,0.10065799,61386.0,61385.0,1.5080477]
[1724405830257,0.10065799,61386.0,61385.0,1.45921549]
[1724405832804,0.10065799,61386.0,61385.0,1.13340349]
[1724405833669,0.10065799,61386.0,61385.0,0.64358851]
[1724405833844,0.10065799,61386.0,61385.0,0.31777756]
[1724405833845,0.16645799,61386.0,61385.0,0.31777756]
[1724405834265,0.16645799,61386.0,61385.0,0.03701653]
[1724405834476,0.32936099,61386.0,61385.0,0.03701653]
[1724405834847,0.98097499,61386.0,61385.0,0.0153064]
[1724405835057,0.98097499,61386.0,61385.0,0.0083064]
[1724405835058,0.70408153,61386.0,61385.0,0.0083064]
[1724405835274,0.86906031,61386.0,61385.0,0.0083064]
[1724405835516,0.82014677,61386.0,61385.0,0.0013064]
[1724405835729,0.65576799,61386.0,61385.0,0.0009064]
[1724405835938,0.65576799,61386.0,61385.0,0.0079064]
[1724405839549,0.98157499,61386.0,61385.0,0.0079064]
[1724405840148,0.65576799,61386.0,61385.0,0.0079064]
[1724405840352,0.98157499,61386.0,61385.0,0.0079064]
[1724405840584,0.65576799,61386.0,61385.0,0.0079064]
[1724405840749,0.98157499,61386.0,61385.0,0.0079064]
[1724405841612,1.47138497,61386.0,61385.0,0.0079064]
[1724405841813,1.54464734,61386.0,61385.0,0.0079064]
[1724405842243,1.47138497,61386.0,61385.0,0.0079064]
[1724405842447,1.47138497,61386.0,61385.0,0.0009064]
[1724405842667,1.56903998,61386.0,61385.0,0.0009064]
[1724405842815,1.47138497,61386.0,61385.0,0.0009064]
[1724405843658,1.54542924,61386.0,61385.0,0.0009064]
[1724405843878,1.47220897,61386.0,61385.0,0.0019064]
[1724405844006,1.47120897,61386.0,61385.0,0.0019064]
[1724405844416,1.52001179,61386.0,61385.0,0.0019064]
[1724405844620,1.52001179,61386.0,61385.0,0.0029064]
[1724405844621,1.52201179,61386.0,61385.0,0.0029064]
[1724405845010,1.54642924,61386.0,61385.0,0.0029064]
[1724405845214,1.47320897,61386.0,61385.0,0.0029064]
[1724405845414,1.5220123,61386.0,61385.0,0.0029064]
[1724405846057,1.47320897,61386.0,61385.0,0.0029064]
[1724405846275,1.52200352,61386.0,61385.0,0.0029064]
[1724405846480,1.52199505,61386.0,61385.0,0.0029064]
[1724405847089,1.47320897,61386.0,61385.0,0.0029064]
[1724405847295,1.54642924,61386.0,61385.0,0.0029064]
[1724405847498,1.52198717,61386.0,61385.0,0.0029064]
[1724405847700,1.52198679,61386.0,61385.0,0.0029064]
[1724405848457,1.68376983,61386.0,61385.0,0.0029064]
[1724405848877,1.63499201,61386.0,61385.0,0.0029064]
[1724405849224,1.47320897,61386.0,61385.0,0.0029064]
[1724405849442,0.98339899,61386.0,61385.0,0.0029064]
[1724405850702,1.30920599,61386.0,61385.0,0.0029064]
[1724405850902,1.47320897,61386.0,61385.0,0.0029064]
[1724405857067,1.47320897,61386.0,61385.0,0.0029064]
[1724405865040,1.40740897,61386.0,61385.0,0.0029064]
[1724405866431,1.40740897,61386.0,61385.0,0.00106546]
[1724405867956,1.40740897,61386.0,61385.0,0.00197186]
[1724405869522,1.4712611,61386.0,61385.0,0.00197186]
[1724405870424,1.6129611,61386.0,61385.0,0.00197186]
[1724405870674,1.66169522,61386.0,61385.0,0.00197186]
[1724405870894,1.66172887,61386.0,61385.0,0.00197186]
[1724405871698,1.9437681,61386.0,61385.0,0.00197186]
[1724405871894,2.19007143,61386.0,61385.0,0.00197186]
[1724405872076,2.0437681,61386.0,61385.0,0.00197186]
[1724405872656,2.0437681,61386.0,61385.0,0.0019064]
[1724405872817,2.0477681,61386.0,61385.0,0.0029064]
[1724405873215,2.0477681,61386.0,61385.0,0.0019064]
[1724405873216,2.0437681,61386.0,61385.0,0.0019064]
[1724405873740,2.05588267,61386.0,61385.0,0.0029064]
[1724405874582,2.04988267,61386.0,61385.0,0.0009064]
[1724405874789,2.05988267,61386.0,61385.0,0.0019064]
[1724405874992,2.05988267,61386.0,61385.0,0.0009064]
[1724405874993,2.04988267,61386.0,61385.0,0.0009064]
[1724405875398,2.37568967,61386.0,61385.0,0.0009064]
[1724405875598,2.37568967,61386.0,61385.0,0.0019064]
[1724405875599,2.41525212,61386.0,61385.0,0.0019064]
[1724405875773,2.08944512,61386.0,61385.0,0.0019064]
[1724405876009,2.08944512,61386.0,61385.0,0.0029064]
[1724405876010,2.41925212,61386.0,61385.0,0.0029064]
[1724405877340,2.58393226,61386.0,61385.0,0.0029064]
[1724405878316,2.41925212,61386.0,61385.0,0.0029064]
[1724405878469,2.58393226,61386.0,61385.0,0.0029064]
[1724405880445,2.41925212,61386.0,61385.0,0.0029064]
[1724405881351,2.58399198,61386.0,61385.0,0.0029064]
[1724405883154,2.90979898,61386.0,61385.0,4e-07]
[1724405883364,2.76805912,61386.0,61385.0,4e-07]
[1724405883769,2.44225212,61386.0,61385.0,4e-07]
[1724405887660,2.5220506,61386.0,61385.0,4e-07]
[1724405890005,2.8478576,61386.0,61385.0,4e-07]
[1724405890332,2.5220506,61386.0,61385.0,4e-07]
[1724405891496,2.5220506,61386.0,61385.0,0.0009068]
[1724405894110,2.5220506,61386.0,61385.0,8e-07]
[1724405894111,2.8478576,61386.0,61385.0,8e-07]
[1724405894393,2.5220506,61386.0,61385.0,8e-07]
[1724405894984,2.8478576,61386.0,61385.0,8e-07]
[1724405895184,2.5220506,61386.0,61385.0,8e-07]
[1724405895590,1.140639,61369.0,61368.0,0.0604072]
[1724405895764,1.38444046,61369.0,61368.0,0.0604072]
[1724405896156,1.38444046,61369.0,61368.0,0.1204072]
[1724405898561,1.39544046,61369.0,61368.0,0.1214072]
[1724405899314,1.38444046,61369.0,61368.0,0.1204072]
[1724405899508,1.55593692,61369.0,61368.0,0.1214072]
[1724405899745,1.55993692,61369.0,61368.0,0.1214072]
[1724405901713,1.60872007,61369.0,61368.0,0.1214072]
[1724405902135,1.55993692,61369.0,61368.0,0.1214072]
[1724405902456,1.60872007,61369.0,61368.0,0.1214072]
[1724405902655,1.55993692,61369.0,61368.0,0.1214072]
[1724405903404,1.60872423,61369.0,61368.0,0.1214072]
[1724405903690,1.60872423,61369.0,61368.0,0.1223136]
[1724405904223,1.44822777,61369.0,61368.0,0.1223136]
[1724405906404,1.72533746,61369.0,61368.0,0.0019064]
[1724405906753,1.79851843,61369.0,61368.0,0.0019064]
[1724405907846,1.79854494,61369.0,61368.0,0.0019064]
[1724405909411,1.72533746,61369.0,61368.0,0.0019064]
[1724405909558,1.88931624,61369.0,61368.0,0.0019064]
[1724405910900,1.98792622,61369.0,61368.0,0.0019064]
[1724405911257,1.98692622,61369.0,61368.0,0.0019064]
[1724405911746,2.08692622,61369.0,61368.0,0.0019064]
[1724405912390,2.11132871,61369.0,61368.0,0.0019064]
[1724405912563,2.11143555,61369.0,61368.0,0.0019064]
[1724405913342,1.98931624,61369.0,61368.0,0.0019064]
[1724405913671,2.07331624,61369.0,61368.0,0.0019064]
[1724405913809,2.07531624,61369.0,61368.0,0.0019064]
[1724405914010,2.22390114,61369.0,61368.0,0.0019064]
[1724405914456,2.07731624,61369.0,61368.0,0.0019064]
[1724405915058,2.40321324,61369.0,61368.0,0.0019064]
[1724405915468,2.5680743,61369.0,61368.0,0.0019064]
[1724405915619,2.40321324,61369.0,61368.0,0.0019064]
[1724405915818,2.38821324,61369.0,61368.0,0.0009064]
[1724405916279,2.38821324,61369.0,61368.0,0.0019064]
[1724405916280,2.39321324,61369.0,61368.0,0.0019064]
[1724405916749,2.07831624,61369.0,61368.0,0.0029064]
[1724405921849,2.14021624,61369.0,61368.0,0.0012084]
[1724405925148,2.30514124,61369.0,61368.0,0.0012084]
[1724405927081,2.48911324,61369.0,61368.0,0.0021148]
[1724405927285,2.48993724,61369.0,61368.0,0.0021148]
[1724405928079,2.47393724,61369.0,61368.0,0.0009064]
[1724405928495,2.47393724,61369.0,61368.0,0.0019064]
[1724405928692,2.17104024,61369.0,61368.0,0.0019064]
[1724405932830,2.00314024,61369.0,61368.0,0.0019064]
[1724405935372,2.16793259,61369.0,61368.0,0.0019064]
[1724405935946,2.19350134,61369.0,61368.0,0.0019064]
[1724405936520,2.25720134,61369.0,61368.0,0.0019064]
[1724405937796,2.33350134,61369.0,61368.0,0.0019064]
[1724405938023,2.16870899,61369.0,61368.0,0.0019064]
[1724405938265,2.33350134,61369.0,61368.0,0.0019064]
[1724405938457,2.16870899,61369.0,61368.0,0.0019064]
[1724405938691,2.30793259,61369.0,61368.0,0.0019064]
[1724405938882,2.14314024,61369.0,61368.0,0.0019064]
[1724405939864,2.30793259,61369.0,61368.0,0.0019064]
[1724405940140,2.14314024,61369.0,61368.0,0.0019064]
[1724405940638,2.30793311,61369.0,61368.0,0.0019064]
[1724405941514,2.14314024,61369.0,61368.0,0.0019064]
[1724405941716,2.30793311,61369.0,61368.0,0.0019064]
[1724405941925,2.14314024,61369.0,61368.0,0.0019064]
[1724405942526,2.30793311,61369.0,61368.0,0.0019064]
[1724405943056,2.14314024,61369.0,61368.0,0.0019064]
[1724405943385,2.30795296,61369.0,61368.0,0.0019064]
[1724405943597,2.14314024,61369.0,61368.0,0.0019064]
[1724405943956,2.24425206,61369.0,61368.0,0.0019064]
[1724405944169,2.07944024,61369.0,61368.0,0.0019064]
[1724405944370,2.24425206,61369.0,61368.0,0.0019064]
[1724405945541,2.07944024,61369.0,61368.0,0.0019064]
[1724405947627,2.40533724,61369.0,61368.0,4e-07]
[1724405948371,2.73123424,61369.0,61368.0,4e-07]
[1724405948567,2.40533724,61369.0,61368.0,4e-07]
[1724405948928,2.73123424,61369.0,61368.0,4e-07]
[1724405949703,2.40533724,61369.0,61368.0,4e-07]
[1724405951077,2.40533724,61369.0,61368.0,0.0009068]
[1724405953946,2.40533724,61369.0,61347.0,0.0813064]
[1724405953947,1.141028,61348.0,61347.0,0.0813064]
[1724405954146,1.07902298,61348.0,61347.0,0.0813064]
[1724405954346,1.15882146,61348.0,61347.0,0.0813064]
[1724405954553,1.15882146,61348.0,61347.0,0.1453064]
[1724405955593,1.17182146,61348.0,61347.0,0.1453064]
[1724405955752,1.20776729,61348.0,61347.0,0.1453064]
[1724405955953,1.19476729,61348.0,61347.0,0.1453064]
[1724405956209,1.20876729,61348.0,61347.0,0.1453064]
[1724405956445,1.17282146,61348.0,61347.0,0.1453064]
[1724405957185,1.17882146,61348.0,61347.0,0.1453064]
[1724405960057,0.68881048,61348.0,61347.0,0.1453064]
[1724405960636,0.81099856,61348.0,61347.0,0.1453064]
[1724405961062,0.68881048,61348.0,61347.0,0.1453064]
[1724405961268,0.75248774,61348.0,61347.0,0.1453064]
[1724405961900,1.07849574,61348.0,61347.0,0.1453064]
[1724405962505,0.91481848,61348.0,61347.0,0.1453064]
[1724405963540,0.58881048,61348.0,61347.0,0.1453064]
[1724405965216,0.91481848,61348.0,61347.0,0.1453064]
[1724405969004,0.91481848,61348.0,61347.0,0.1453064]
[1724405971104,1.07882146,61348.0,61347.0,0.1453064]
[1724405972531,1.40482946,61348.0,61347.0,0.1453064]
[1724405972663,1.55314241,61348.0,61347.0,0.1453064]
[1724405979359,1.40482946,61348.0,61347.0,0.1453064]
[1724405980666,1.40482946,61348.0,61347.0,0.0649064]
[1724405983563,1.40482946,61348.0,61347.0,0.0009064]
[1724405984295,1.48162946,61348.0,61347.0,0.0009064]
[1724405984596,1.46762946,61348.0,61347.0,0.0009064]
[1724405984802,1.95861624,61348.0,61347.0,0.0009064]
[1724405985003,1.97461624,61348.0,61347.0,0.0009064]
[1724405985274,2.14181624,61348.0,61347.0,0.0009064]
[1724405987261,2.12781624,61348.0,61347.0,0.0009064]
[1724405987659,2.14181624,61348.0,61347.0,0.0009064]
[1724405988076,2.48182424,61348.0,61347.0,0.0009064]
[1724405988277,2.49082424,61348.0,61347.0,0.0009064]
[1724405988671,2.50482424,61348.0,61347.0,0.0009064]
[1724405989129,2.49082424,61348.0,61347.0,0.0009064]
[1724405989336,2.50482424,61348.0,61347.0,0.0009064]
[1724405989884,2.47682424,61348.0,61347.0,0.0009064]
[1724405990286,2.50482424,61348.0,61347.0,0.0009064]
[1724406002782,2.43962424,61348.0,61347.0,0.0009064]
[1724406007302,2.49962424,61348.0,61347.0,0.0009064]
[1724406013488,0.168023,61341.0,61333.0,0.1416]
[1724406013694,0.79977198,61341.0,61333.0,0.1416]
[1724406013901,1.83720998,61341.0,61333.0,0.1416]
[1724406014115,2.16325598,61341.0,61333.0,0.0612]
[1724406014502,2.22485598,61341.0,61330.0,0.0629]
[1724406014737,2.40183476,61341.0,61330.0,0.0629]
[1724406014948,2.27623476,61341.0,61337.0,0.0758]
[1724406015149,2.43173324,61341.0,61335.0,0.0629]
[1724406015341,2.49333324,61341.0,61335.0,0.0629]
[1724406016215,2.49333324,61341.0,61333.0,0.0631]
[1724406016414,1.468423,61332.0,61327.0,0.0631]
[1724406016644,1.95865416,61332.0,61327.0,0.0631]
[1724406016860,1.83780706,61332.0,61327.0,0.0631]
[1724406017074,1.98560072,61332.0,61327.0,0.0631]
[1724406018234,1.99960072,61332.0,61327.0,0.0631]
[1724406018596,2.01360072,61332.0,61327.0,0.0631]
[1724406018910,1.99960072,61332.0,61327.0,0.0631]
[1724406019927,2.00160072,61332.0,61327.0,0.0631]
[1724406020135,2.00160072,61332.0,61327.0,0.03775]
[1724406020136,1.467517,61328.0,61327.0,0.03775]
[1724406020340,1.81231846,61328.0,61327.0,0.03775]
[1724406021562,1.83931846,61328.0,61327.0,0.03775]
[1724406021711,1.82531846,61328.0,61327.0,0.03775]
[1724406022325,1.83931846,61328.0,61327.0,0.03775]
[1724406022688,1.468612,61324.0,61311.0,0.0002]
[1724406022897,1.86077694,61324.0,61317.0,0.0763]
[1724406023108,1.81241346,61324.0,61317.0,0.0763]
[1724406023318,2.14054946,61324.0,61319.0,0.0638]
[1724406023529,2.38112824,61324.0,61314.0,0.0638]
[1724406023747,2.44122824,61324.0,61314.0,0.0638]
[1724406023965,2.44122824,61324.0,61311.0,0.0002]
[1724406023966,0.001,61312.0,61311.0,0.0002]
[1724406024181,0.8155,61312.0,61311.0,0.146]
[1724406024391,0.99529848,61312.0,61311.0,0.1642164]
[1724406024598,1.43331576,61312.0,61311.0,0.146]
[1724406025019,1.55519006,61312.0,61311.0,0.146]
[1724406025226,1.69479784,61312.0,61311.0,0.146]
[1724406025434,1.69579784,61312.0,61311.0,0.146]
[1724406025651,1.59731874,61312.0,61311.0,0.146]
[1724406026270,1.70876944,61312.0,61311.0,0.146]
[1724406026489,1.61231874,61312.0,61311.0,0.146]
[1724406026938,1.73416667,61312.0,61311.0,0.146]
[1724406027324,1.61231874,61312.0,61311.0,0.146]
[1724406027533,1.62431874,61312.0,61311.0,0.146]
[1724406027958,1.59831874,61312.0,61311.0,0.146]
[1724406028386,1.72274594,61312.0,61311.0,0.146]
[1724406028592,1.70874594,61312.0,61311.0,0.146]
[1724406028801,1.61131874,61312.0,61311.0,0.146]
[1724406029018,1.62531874,61312.0,61311.0,0.146]
[1724406029230,1.70873781,61312.0,61311.0,0.146]
[1724406029427,1.72273781,61312.0,61311.0,0.146]
[1724406029838,1.70973781,61312.0,61311.0,0.1405]
[1724406030152,1.62531874,61312.0,61311.0,0.1405]
[1724406031145,1.72273313,61312.0,61311.0,0.1405]
[1724406031347,1.62531874,61312.0,61311.0,0.1405]
[1724406032156,1.41970298,61312.0,61311.0,0.1414064]
[1724406032355,1.59691798,61312.0,61311.0,0.1414064]
[1724406032559,1.60991798,61312.0,61311.0,0.1414064]
[1724406032969,1.59591798,61312.0,61311.0,0.1414064]
[1724406033173,1.75989676,61312.0,61311.0,0.1414064]
[1724406033393,1.76089676,61312.0,61311.0,0.1414064]
[1724406033601,1.74689676,61312.0,61311.0,0.1414064]
[1724406033992,1.77489676,61312.0,61311.0,0.1414064]
[1724406034399,1.76088777,61312.0,61311.0,0.1414064]
[1724406034794,1.77388777,61312.0,61311.0,0.1414064]
[1724406039293,1.67648024,61312.0,61311.0,0.1414064]
[1724406041274,1.74950446,61312.0,61311.0,0.1414064]
[1724406041479,1.67648024,61312.0,61311.0,0.1414064]
[1724406041918,1.77388777,61312.0,61311.0,0.1414064]
[1724406042368,1.75988777,61312.0,61311.0,0.1414064]
[1724406042589,1.77388777,61312.0,61311.0,0.1414064]
[1724406042819,1.76088777,61312.0,61311.0,0.1414064]
[1724406043052,1.77488777,61312.0,61311.0,0.1414064]
[1724406043290,1.67748024,61312.0,61311.0,0.1414064]
[1724406043738,1.66348024,61312.0,61311.0,0.1414064]
[1724406043949,1.67748024,61312.0,61311.0,0.1414064]
[1724406044154,1.66348024,61312.0,61311.0,0.1414064]
[1724406044362,1.64948024,61312.0,61311.0,0.1414064]
[1724406044722,1.66430524,61312.0,61311.0,0.1414064]
[1724406045764,1.67830524,61312.0,61311.0,0.1414064]
[1724406047213,1.68740723,61312.0,61311.0,0.1414064]
[1724406047413,2.13532191,61312.0,61311.0,0.0009064]
[1724406047615,1.80912191,61312.0,61311.0,0.0009064]
[1724406047769,2.13532191,61312.0,61311.0,0.0009064]
[1724406048808,2.01360723,61312.0,61311.0,0.0009064]
[1724406049183,2.13532191,61312.0,61311.0,0.0009064]
[1724406050262,2.01360723,61312.0,61311.0,0.0009064]
[1724406050655,2.13534677,61312.0,61311.0,0.0009064]
[1724406050918,2.01360723,61312.0,61311.0,0.0009064]
[1724406052002,2.01560723,61312.0,61311.0,0.0009064]
[1724406052432,2.00160723,61312.0,61311.0,0.0009064]
[1724406052844,1.99960723,61312.0,61311.0,0.0009064]
[1724406053045,2.01360723,61312.0,61311.0,0.0009064]
[1724406053251,1.99960723,61312.0,61311.0,0.0806064]
[1724406053465,1.98560723,61312.0,61311.0,0.0806064]
[1724406053678,2.01360723,61312.0,61311.0,0.0806064]
[1724406057002,1.59850676,61312.0,61311.0,0.1460064]
[1724406057416,1.67830524,61312.0,61311.0,0.1460064]
[1724406061572,2.00450524,61312.0,61311.0,0.1460064]
[1724406062078,1.67830524,61312.0,61311.0,0.1460064]
[1724406062252,1.8246602,61312.0,61311.0,0.1460064]
[1724406062493,1.8256602,61312.0,61311.0,0.0009064]
[1724406062701,2.1518602,61312.0,61311.0,0.0009064]
[1724406063431,2.00550524,61312.0,61311.0,0.0009064]
[1724406064329,2.00950524,61312.0,61311.0,0.0009064]
[1724406064536,2.08150524,61312.0,61311.0,0.0009064]
[1724406065231,2.00550524,61312.0,61311.0,0.0009064]
[1724406067185,2.07520524,61312.0,61311.0,0.0009064]
[1724406067419,2.00550524,61312.0,61311.0,0.0009064]
[1724406067835,2.00950524,61312.0,61311.0,0.0009064]
[1724406068040,2.00550524,61312.0,61311.0,0.0009064]
[1724406070141,2.00750524,61312.0,61311.0,0.0009064]
[1724406070349,2.00550524,61312.0,61311.0,0.0009064]
[1724406070551,2.00750524,61312.0,61311.0,0.0009064]
[1724406070972,2.00750524,61312.0,61306.0,0.009064]
[1724406070973,1.473021,61307.0,61306.0,0.009064]
[1724406071174,1.85542246,61307.0,61306.0,0.009064]
[1724406071408,1.95542246,61307.0,61306.0,0.009064]
[1724406071606,2.28164946,61307.0,61306.0,0.009064]
[1724406072541,2.29564946,61307.0,61306.0,0.009064]
[1724406072762,2.44562824,61307.0,61306.0,0.009064]
[1724406073168,2.45962824,61307.0,61306.0,0.009064]
[1724406073380,2.47362824,61307.0,61306.0,0.009064]
[1724406073827,2.45962824,61307.0,61306.0,0.009064]
[1724406074046,2.47362824,61307.0,61306.0,0.009064]
[1724406075271,2.4818463,61307.0,61306.0,0.009064]
[1724406075475,2.0943193,61307.0,61306.0,0.009064]
[1724406075690,2.0170193,61307.0,61306.0,0.009064]
[1724406076116,2.0130193,61307.0,61306.0,0.009064]
[1724406076359,2.17984019,61307.0,61306.0,0.009064]
[1724406076543,2.0130193,61307.0,61306.0,0.009064]
[1724406076751,2.1778401,61307.0,61306.0,0.009064]
[1724406077173,2.2034352,61307.0,61306.0,0.009064]
[1724406077403,2.2074352,61307.0,61306.0,0.009064]
[1724406077633,2.0386144,61307.0,61306.0,0.009064]
[1724406078462,2.0406144,61307.0,61306.0,0.009064]
[1724406078872,2.0426144,61307.0,61306.0,0.009064]
[1724406079925,2.0386144,61307.0,61306.0,0.009064]
[1724406080123,2.20342684,61307.0,61306.0,0.009064]
[1724406080542,2.0406144,61307.0,61306.0,0.009064]
[1724406080742,2.0426144,61307.0,61306.0,0.009064]
[1724406080955,2.1192144,61307.0,61306.0,0.009064]
[1724406081392,1.142071,61292.0,61291.0,0.0002]
[1724406081594,1.38587246,61292.0,61291.0,0.0002]
[1724406082000,1.48587246,61292.0,61291.0,0.0764]
[1724406082831,1.49887246,61292.0,61291.0,0.0764]
[1724406083041,1.50387246,61292.0,61291.0,0.0764]
[1724406083247,1.66785124,61292.0,61291.0,0.0764]
[1724406087096,1.66785124,61292.0,61291.0,0.0002]
[1724406087306,1.66885124,61292.0,61291.0,0.0002]
[1724406087763,1.66885124,61292.0,61278.0,0.009064]
[1724406087764,1.142316,61279.0,61278.0,0.00224]
[1724406087969,0.19413008,61279.0,61278.0,0.14584]
[1724406088214,0.83336546,61279.0,61278.0,0.14584]
[1724406088423,0.83336546,61279.0,61278.0,0.16256603]
[1724406088424,0.75356698,61279.0,61278.0,0.16256603]
[1724406088631,1.15309153,61279.0,61278.0,0.14584]
[1724406088845,1.12871105,61279.0,61278.0,0.14584]
[1724406089488,1.14271105,61279.0,61278.0,0.14584]
[1724406090143,1.12871105,61279.0,61278.0,0.14584]
[1724406090350,1.09394298,61279.0,61278.0,0.14584]
[1724406092258,1.42031898,61279.0,61278.0,0.00224]
[1724406092459,1.58429776,61279.0,61278.0,0.00224]
[1724406092860,1.68182967,61279.0,61278.0,0.00224]
[1724406093062,1.66782967,61279.0,61278.0,0.00224]
[1724406093265,1.57029776,61279.0,61278.0,0.00224]
[1724406093467,1.58429776,61279.0,61278.0,0.00224]
[1724406093853,1.24392176,61279.0,61278.0,0.00224]
[1724406094283,1.3169915,61279.0,61278.0,0.00224]
[1724406094503,1.3309915,61279.0,61278.0,0.00224]
[1724406094907,1.3309915,61279.0,61278.0,0.14434]
[1724406094908,1.09394298,61279.0,61278.0,0.14434]
[1724406095323,0.603564,61279.0,61278.0,0.14434]
[1724406095985,0.589564,61279.0,61278.0,0.14434]
[1724406096198,0.163188,61279.0,61278.0,0.14434]
[1724406096434,0.177188,61279.0,61278.0,0.14434]
[1724406096670,0.163188,61279.0,61278.0,0.14434]
[1724406096878,0.163188,61279.0,61278.0,0.15549292]
[1724406097084,0.177188,61279.0,61278.0,0.15549292]
[1724406097296,0.489564,61279.0,61278.0,0.14434]
[1724406097509,0.57913725,61279.0,61278.0,0.15549292]
[1724406097724,0.59313725,61279.0,61278.0,0.14434]
[1724406099478,0.59313725,61279.0,61278.0,0.15549292]
[1724406099887,0.503564,61279.0,61278.0,0.14434]
[1724406101139,0.503564,61279.0,61278.0,0.15549292]
[1724406101373,0.503564,61279.0,61278.0,0.14434]
[1724406101820,1.32031898,61279.0,61278.0,0.00224]
[1724406103116,1.30631898,61279.0,61278.0,0.00224]
[1724406103327,1.48429776,61279.0,61278.0,0.00224]
[1724406103539,1.47029776,61279.0,61278.0,0.00224]
[1724406103949,1.48429776,61279.0,61278.0,0.00224]
[1724406104162,1.47029776,61279.0,61278.0,0.00224]
[1724406104583,1.48429776,61279.0,61278.0,0.00224]
[1724406105638,1.58429776,61279.0,61278.0,0.00224]
[1724406105862,1.63299786,61279.0,61278.0,0.00224]
[1724406106075,1.58429776,61279.0,61278.0,0.00224]
[1724406106285,1.63299565,61279.0,61278.0,0.00224]
[1724406106500,1.6329931,61279.0,61278.0,0.00224]
[1724406106723,1.63299194,61279.0,61278.0,0.00224]
[1724406106970,1.57029776,61279.0,61278.0,0.00224]
[1724406107180,1.64334429,61279.0,61278.0,0.00224]
[1724406107385,1.64333242,61279.0,61278.0,0.00224]
[1724406107587,1.65733242,61279.0,61278.0,0.00224]
[1724406107967,1.64333242,61279.0,61278.0,0.00224]
[1724406108422,1.65733242,61279.0,61278.0,0.00224]
[1724406108604,1.58429776,61279.0,61278.0,0.00224]
[1724406109240,1.65733242,61279.0,61278.0,0.00224]
[1724406109443,1.58429776,61279.0,61278.0,0.00224]
[1724406109868,1.65734308,61279.0,61278.0,0.00224]
[1724406110080,1.64334339,61279.0,61278.0,0.00224]
[1724406110500,1.65734339,61279.0,61278.0,0.00224]
[1724406110731,1.12865017,61279.0,61278.0,0.00224]
[1724406110941,1.15974146,61279.0,61278.0,0.14464]
[1724406111149,1.00973848,61279.0,61278.0,0.14464]
[1724406111569,0.603564,61279.0,61278.0,0.14464]
[1724406111800,0.68336248,61279.0,61278.0,0.14464]
[1724406112245,1.00973848,61279.0,61278.0,0.14464]
[1724406112468,1.06967252,61279.0,61278.0,0.14464]
[1724406113097,1.05567252,61279.0,61278.0,0.14464]
[1724406113518,0.74329652,61279.0,61278.0,0.14464]
[1724406113731,0.72929652,61279.0,61278.0,0.14464]
[1724406113940,0.74329652,61279.0,61278.0,0.14464]
[1724406114145,1.06967252,61279.0,61278.0,0.14464]
[1724406114632,1.07049652,61279.0,61278.0,0.14464]
[1724406115251,0.74412052,61279.0,61278.0,0.14464]
[1724406115456,0.604388,61279.0,61278.0,0.14464]
[1724406115684,0.504388,61279.0,61278.0,0.14464]
[1724406115909,0.91056248,61279.0,61278.0,0.14464]
[1724406116308,0.95931109,61279.0,61278.0,0.14464]
[1724406117748,0.91056248,61279.0,61278.0,0.14464]
[1724406117956,1.0561911,61279.0,61278.0,0.14464]
[1724406118157,1.15368832,61279.0,61278.0,0.14464]
[1724406118371,1.6440673,61279.0,61278.0,0.14464]
[1724406118582,1.29333245,61279.0,61278.0,0.14464]
[1724406118786,1.59533017,61279.0,61278.0,0.14464]
[1724406118991,1.61970845,61279.0,61278.0,0.06244]
[1724406119198,1.6440673,61279.0,61278.0,0.00224]
[1724406119841,1.3176913,61279.0,61278.0,0.00224]
[1724406120053,1.22019408,61279.0,61278.0,0.00224]
[1724406120261,1.64409658,61279.0,61278.0,0.00224]
[1724406120468,1.31772058,61279.0,61278.0,0.00224]
[1724406121114,1.64409658,61279.0,61278.0,0.00224]
[1724406121740,1.66847821,61279.0,61278.0,0.00224]
[1724406122430,1.54657008,61279.0,61278.0,0.00224]
[1724406123288,1.66850523,61279.0,61278.0,0.00224]
[1724406123466,1.66852897,61279.0,61278.0,0.00224]
[1724406123905,1.65452897,61279.0,61278.0,0.00224]
[1724406124108,1.66852897,61279.0,61278.0,0.00224]
[1724406124339,1.54657008,61279.0,61278.0,0.00224]
[1724406125639,1.53257008,61279.0,61278.0,0.00224]
[1724406126086,1.22019408,61279.0,61278.0,0.00224]
[1724406126499,1.34220482,61279.0,61278.0,0.14604]
[1724406126920,0.95277474,61279.0,61278.0,0.14604]
[1724406127340,0.830764,61279.0,61278.0,0.14604]
[1724406127751,0.93879013,61279.0,61278.0,0.14604]
[1724406128240,0.95279013,61279.0,61278.0,0.14604]
[1724406128469,0.93879013,61279.0,61278.0,0.14604]
[1724406128866,0.95279013,61279.0,61278.0,0.14604]
[1724406129219,0.490388,61279.0,61278.0,0.14604]
[1724406129448,0.504388,61279.0,61278.0,0.14604]
[1724406129660,0.84775152,61279.0,61278.0,0.14604]
[1724406130097,0.84775152,61279.0,61278.0,0.06674]
[1724406130298,0.84775152,61279.0,61278.0,0.00224]
[1724406130673,1.3381305,61279.0,61278.0,0.00224]
[1724406131908,0.84775152,61279.0,61278.0,0.00224]
[1724406133594,1.48465397,61279.0,61278.0,0.00224]
[1724406134124,1.3381305,61279.0,61278.0,0.00224]
[1724406134326,1.48467499,61279.0,61278.0,0.00224]
[1724406137014,1.54487499,61279.0,61278.0,0.00224]
[1724406137212,1.4983305,61279.0,61278.0,0.00224]
[1724406137368,1.52393508,61279.0,61278.0,0.00224]
[1724406139239,1.50993508,61279.0,61278.0,0.00224]
[1724406139649,1.52393508,61279.0,61278.0,0.00224]
[1724406140065,1.50993508,61279.0,61278.0,0.00224]
[1724406140322,1.44973508,61279.0,61278.0,0.00224]
[1724406140531,1.46373508,61279.0,61278.0,0.00224]
[1724406146469,1.54353356,61279.0,61278.0,0.00224]
[1724406146956,1.52953356,61279.0,61278.0,0.00224]
[1724406147669,1.54353356,61279.0,61278.0,0.00224]
[1724406149876,1.86990956,61279.0,61278.0,0.00224]
[1724406150167,1.93440956,61279.0,61278.0,0.00224]
[1724406151179,2.01550956,61279.0,61278.0,0.00224]
[1724406151476,2.00150956,61279.0,61278.0,0.00224]
[1724406152471,2.01550956,61279.0,61278.0,0.00224]
[1724406153702,1.95200956,61279.0,61278.0,0.00224]
[1724406153944,1.86990956,61279.0,61278.0,0.00224]
[1724406154190,1.54353356,61279.0,61278.0,0.00224]
[1724406158852,1.68643356,61279.0,61278.0,0.00224]
[1724406159099,1.69043356,61279.0,61278.0,0.00224]
[1724406159325,2.01680956,61279.0,61278.0,0.00224]
[1724406159805,2.01280956,61279.0,61278.0,0.00224]
[1724406160316,2.01480956,61279.0,61278.0,0.00224]
[1724406160561,2.18151455,61279.0,61278.0,0.00224]